﻿Body Name,Body,Service division categorisation,Expense Type,Date paid,Transaction Reference,Net,Supplier Name
East Lindsey District Council,http://statistics.data.gov.uk/id/local-authority/32UC,Corporate,Payroll - Lincolnshire Credit Union,23/07/2021,30002900,340.00 ,Notts and Lincs Credit Union Ltd
East Lindsey District Council,http://statistics.data.gov.uk/id/local-authority/32UC,Corporate,Payroll - Nursery Voucher,13/07/2021,30002650,330.00 ,Sodexo
East Lindsey District Council,http://statistics.data.gov.uk/id/local-authority/32UC,Corporate,Payroll - Unison,27/07/2021,30002901,819.70 ,Unison
East Lindsey District Council,http://statistics.data.gov.uk/id/local-authority/32UC,AD Support Services & Partnerships,Other Income,27/07/2021,30002901,-24.59 ,Unison
East Lindsey District Council,http://statistics.data.gov.uk/id/local-authority/32UC,AD Support Services & Partnerships,Rent Payments,13/07/2021,30002235,"1,231.25 ",Lincolnshire County Council
East Lindsey District Council,http://statistics.data.gov.uk/id/local-authority/32UC,Audit,Other local authorities,27/07/2021,30002700,"16,520.00 ",Lincolnshire County Council
East Lindsey District Council,http://statistics.data.gov.uk/id/local-authority/32UC,Building Control,Other Private Contractors,29/07/2021,30002993,824.00 ,Foundations and Buildings Ltd
East Lindsey District Council,http://statistics.data.gov.uk/id/local-authority/32UC,Capital,Materials and Consumables,23/07/2021,30002838,"9,256.32 ",Buildbase
East Lindsey District Council,http://statistics.data.gov.uk/id/local-authority/32UC,Capital,Materials and Consumables,23/07/2021,30002839,"1,028.48 ",Buildbase
East Lindsey District Council,http://statistics.data.gov.uk/id/local-authority/32UC,Capital,Materials and Consumables,23/07/2021,30002840,"1,028.48 ",Buildbase
East Lindsey District Council,http://statistics.data.gov.uk/id/local-authority/32UC,Capital,Materials and Consumables,23/07/2021,30002842,"1,028.48 ",Buildbase
East Lindsey District Council,http://statistics.data.gov.uk/id/local-authority/32UC,Capital,Materials and Consumables,23/07/2021,30002843,"1,028.48 ",Buildbase
East Lindsey District Council,http://statistics.data.gov.uk/id/local-authority/32UC,Capital,Materials and Consumables,23/07/2021,30002851,"1,028.48 ",Buildbase
East Lindsey District Council,http://statistics.data.gov.uk/id/local-authority/32UC,Capital,Materials and Consumables,23/07/2021,30002853,"1,028.48 ",Buildbase
East Lindsey District Council,http://statistics.data.gov.uk/id/local-authority/32UC,Capital,Materials and Consumables,23/07/2021,30002855,"2,056.96 ",Buildbase
East Lindsey District Council,http://statistics.data.gov.uk/id/local-authority/32UC,Capital,Materials and Consumables,23/07/2021,30002856,"1,028.48 ",Buildbase
East Lindsey District Council,http://statistics.data.gov.uk/id/local-authority/32UC,Capital,Materials and Consumables,23/07/2021,30002857,"1,028.48 ",Buildbase
East Lindsey District Council,http://statistics.data.gov.uk/id/local-authority/32UC,Capital,Materials and Consumables,23/07/2021,30002858,"1,028.48 ",Buildbase
East Lindsey District Council,http://statistics.data.gov.uk/id/local-authority/32UC,Capital,Materials and Consumables,23/07/2021,30002860,"1,028.48 ",Buildbase
East Lindsey District Council,http://statistics.data.gov.uk/id/local-authority/32UC,Capital,Materials and Consumables,23/07/2021,30002861,"1,028.48 ",Buildbase
East Lindsey District Council,http://statistics.data.gov.uk/id/local-authority/32UC,Capital,Professional Fees,20/07/2021,30002607,"2,350.25 ",John Peberdy Partnership
East Lindsey District Council,http://statistics.data.gov.uk/id/local-authority/32UC,Capital,Purchase of Software,26/08/2021,30002999,746.64 ,Capita Business Services Ltd
East Lindsey District Council,http://statistics.data.gov.uk/id/local-authority/32UC,Capital,Purchase of Vehicles,24/08/2021,30002951,"173,575.00 ",Dennis Eagle Ltd
East Lindsey District Council,http://statistics.data.gov.uk/id/local-authority/32UC,Capital,Purchase of Vehicles,24/08/2021,30002952,"173,575.00 ",Dennis Eagle Ltd
East Lindsey District Council,http://statistics.data.gov.uk/id/local-authority/32UC,Capital,Vehicle Hire,23/07/2021,30002841,"1,519.47 ",Buildbase
East Lindsey District Council,http://statistics.data.gov.uk/id/local-authority/32UC,Capital,Works to Buildings (Main Contractor),08/07/2021,30002284,"194,057.96 ",G F Tomlinson Building Limited
East Lindsey District Council,http://statistics.data.gov.uk/id/local-authority/32UC,Capital,Works to Buildings (Main Contractor),13/07/2021,30002499,"299,264.62 ",Willmott Dixon Construction Ltd
East Lindsey District Council,http://statistics.data.gov.uk/id/local-authority/32UC,Capital,Works to Buildings (Main Contractor),20/07/2021,30002748,"1,589.22 ",Marshalls Plc
East Lindsey District Council,http://statistics.data.gov.uk/id/local-authority/32UC,Capital,Works to Buildings (Main Contractor),20/07/2021,30002749,"1,161.72 ",Marshalls Plc
East Lindsey District Council,http://statistics.data.gov.uk/id/local-authority/32UC,Capital,Works to Buildings (Main Contractor),20/07/2021,30002750,"1,532.93 ",Marshalls Plc
East Lindsey District Council,http://statistics.data.gov.uk/id/local-authority/32UC,Capital,Works to Buildings (Main Contractor),20/07/2021,30002751,"2,892.72 ",Marshalls Plc
East Lindsey District Council,http://statistics.data.gov.uk/id/local-authority/32UC,Capital,Works to Buildings (Main Contractor),20/07/2021,30002752,"1,022.40 ",Marshalls Plc
East Lindsey District Council,http://statistics.data.gov.uk/id/local-authority/32UC,Capital,Works to Buildings (Main Contractor),20/07/2021,30002753,"1,022.40 ",Marshalls Plc
East Lindsey District Council,http://statistics.data.gov.uk/id/local-authority/32UC,Capital,Works to Buildings (Main Contractor),20/07/2021,30002754,"2,918.07 ",Marshalls Plc
East Lindsey District Council,http://statistics.data.gov.uk/id/local-authority/32UC,Capital,Works to Buildings (Main Contractor),20/07/2021,30002755,"4,007.81 ",Marshalls Plc
East Lindsey District Council,http://statistics.data.gov.uk/id/local-authority/32UC,Capital,Works to Buildings (Main Contractor),20/07/2021,30002756,"1,908.48 ",Marshalls Plc
East Lindsey District Council,http://statistics.data.gov.uk/id/local-authority/32UC,Capital,Works to Buildings (Main Contractor),20/07/2021,30002757,"1,022.40 ",Marshalls Plc
East Lindsey District Council,http://statistics.data.gov.uk/id/local-authority/32UC,Capital,Works to Buildings (Main Contractor),20/07/2021,30002758,"1,022.40 ",Marshalls Plc
East Lindsey District Council,http://statistics.data.gov.uk/id/local-authority/32UC,Capital,Works to Buildings (Main Contractor),20/07/2021,30002759,817.92 ,Marshalls Plc
East Lindsey District Council,http://statistics.data.gov.uk/id/local-authority/32UC,Capital,Works to Buildings (Main Contractor),20/07/2021,30002760,"1,022.40 ",Marshalls Plc
East Lindsey District Council,http://statistics.data.gov.uk/id/local-authority/32UC,Capital,Works to Buildings (Main Contractor),20/07/2021,30002761,"2,044.80 ",Marshalls Plc
East Lindsey District Council,http://statistics.data.gov.uk/id/local-authority/32UC,Capital,Works to Buildings (Main Contractor),20/07/2021,30002762,"1,635.84 ",Marshalls Plc
East Lindsey District Council,http://statistics.data.gov.uk/id/local-authority/32UC,Capital,Works to Buildings (Main Contractor),20/07/2021,30002763,"2,862.72 ",Marshalls Plc
East Lindsey District Council,http://statistics.data.gov.uk/id/local-authority/32UC,Capital,Works to Buildings (Main Contractor),20/07/2021,30002765,"1,431.36 ",Marshalls Plc
East Lindsey District Council,http://statistics.data.gov.uk/id/local-authority/32UC,Capital,Works to Buildings (Main Contractor),20/07/2021,30002768,"1,277.83 ",Marshalls Plc
East Lindsey District Council,http://statistics.data.gov.uk/id/local-authority/32UC,Capital,Works to Buildings (Main Contractor),20/07/2021,30002769,"2,099.33 ",Marshalls Plc
East Lindsey District Council,http://statistics.data.gov.uk/id/local-authority/32UC,Capital,Works to Buildings (Main Contractor),20/07/2021,30002770,858.82 ,Marshalls Plc
East Lindsey District Council,http://statistics.data.gov.uk/id/local-authority/32UC,Climate Change and Environment,Landscaping,13/07/2021,30002502,597.17 ,GRS Signs Ltd
East Lindsey District Council,http://statistics.data.gov.uk/id/local-authority/32UC,Climate Change and Environment,Mobile Phones,19/08/2021,30003013,348.83 ,Vodafone Ltd Corporate
East Lindsey District Council,http://statistics.data.gov.uk/id/local-authority/32UC,Corporate Accounting,External Audit Fees,06/07/2021,30002240,"12,099.00 ",Mazars
East Lindsey District Council,http://statistics.data.gov.uk/id/local-authority/32UC,Corporate Accounting,External Audit Fees,24/08/2021,30002998,"9,020.00 ",Mazars
East Lindsey District Council,http://statistics.data.gov.uk/id/local-authority/32UC,Corporate Accounting,Gain or Loss on Sale of Non-Current Assets,23/07/2021,30002602,"7,071.53 ",Lincolnshire Development
East Lindsey District Council,http://statistics.data.gov.uk/id/local-authority/32UC,Corporate Accounting,Gain or Loss on Sale of Non-Current Assets,05/08/2021,30002665,"129,200.79 ",Blueprint Limited
East Lindsey District Council,http://statistics.data.gov.uk/id/local-authority/32UC,Corporate Accounting,Postages,27/07/2021,30002232,341.67 ,Royal Mail Group Ltd
East Lindsey District Council,http://statistics.data.gov.uk/id/local-authority/32UC,Corporate Accounting,Postages,26/08/2021,30003027,341.67 ,Royal Mail Group Ltd
East Lindsey District Council,http://statistics.data.gov.uk/id/local-authority/32UC,Corporate Accounting,Professional and Contractors Fees,29/07/2021,30002501,262.54 ,Kings Armoured Security Services Ltd
East Lindsey District Council,http://statistics.data.gov.uk/id/local-authority/32UC,Corporate Management,Grants and Contributions to Outside Bodies - No Service Received,06/07/2021,30002222,"2,943.00 ",Rural Retailer Ltd
East Lindsey District Council,http://statistics.data.gov.uk/id/local-authority/32UC,Corporate Management,Grants and Contributions to Outside Bodies - No Service Received,13/07/2021,30002283,712.50 ,Tyme Flyes Limited
East Lindsey District Council,http://statistics.data.gov.uk/id/local-authority/32UC,Corporate Management,Grants and Contributions to Outside Bodies - No Service Received,27/07/2021,30002796,"2,362.58 ",Skegness Town Council
East Lindsey District Council,http://statistics.data.gov.uk/id/local-authority/32UC,Corporate Management,Lincolnshire Legal Services,15/07/2021,30002693,"15,823.66 ",Lincolnshire County Council
East Lindsey District Council,http://statistics.data.gov.uk/id/local-authority/32UC,Corporate Management,Postages,20/07/2021,30002710,278.57 ,Royal Mail Group Ltd
East Lindsey District Council,http://statistics.data.gov.uk/id/local-authority/32UC,Corporate Management,Postages,20/07/2021,30002711,"5,580.11 ",Royal Mail Group Ltd
East Lindsey District Council,http://statistics.data.gov.uk/id/local-authority/32UC,Corporate Management,Professional and Contractors Fees,23/07/2021,30002735,"24,286.00 ",West Lindsey District Council
East Lindsey District Council,http://statistics.data.gov.uk/id/local-authority/32UC,Corporate Management,Public Sector Partnership Services,15/07/2021,30002498,"437,944.75 ",Public Sector Partnership Services Ltd
East Lindsey District Council,http://statistics.data.gov.uk/id/local-authority/32UC,Corporate Management,Staff Training Expenses (Non-Payroll),27/07/2021,30002931,502.50 ,Iolite
East Lindsey District Council,http://statistics.data.gov.uk/id/local-authority/32UC,Corporate Management,Subscriptions to Organisations and Other Bodies,23/07/2021,30002412,"5,375.00 ",Nottingham City Council
East Lindsey District Council,http://statistics.data.gov.uk/id/local-authority/32UC,Corporate Management,Subscriptions to Organisations and Other Bodies,05/08/2021,30002895,"1,000.00 ",Turnstone Coaching Solutions Ltd
East Lindsey District Council,http://statistics.data.gov.uk/id/local-authority/32UC,Corporate Management,Subscriptions to Organisations and Other Bodies,26/08/2021,30003029,"2,400.00 ",Sandra Whiles Coaching Ltd
East Lindsey District Council,http://statistics.data.gov.uk/id/local-authority/32UC,Development Control,Planning Application Fees,23/07/2021,30002836,"13,398.00 ",Portal Plan Quest Ltd
East Lindsey District Council,http://statistics.data.gov.uk/id/local-authority/32UC,Development Control,Professional and Contractors Fees,06/07/2021,30002213,"4,000.00 ",Lincolnshire County Council
East Lindsey District Council,http://statistics.data.gov.uk/id/local-authority/32UC,Development Control,Professional and Contractors Fees,06/07/2021,30002238,"2,370.00 ",Squire Patton Boggs UK LLP
East Lindsey District Council,http://statistics.data.gov.uk/id/local-authority/32UC,Development Control,Professional and Contractors Fees,06/07/2021,30002239,"21,981.82 ",Squire Patton Boggs UK LLP
East Lindsey District Council,http://statistics.data.gov.uk/id/local-authority/32UC,Development Control,Professional and Contractors Fees,23/07/2021,30002814,750.00 ,Simmonds Planning Ltd
East Lindsey District Council,http://statistics.data.gov.uk/id/local-authority/32UC,Development Control,Professional and Contractors Fees,29/07/2021,30002884,"1,900.00 ",Squire Patton Boggs UK LLP
East Lindsey District Council,http://statistics.data.gov.uk/id/local-authority/32UC,Development Control,Professional and Contractors Fees,23/07/2021,30002885,787.00 ,ProMediate UK Ltd
East Lindsey District Council,http://statistics.data.gov.uk/id/local-authority/32UC,East Lindsey Balance Sheet,ST Debtors HB Overpayments Control Account,23/07/2021,30002529,283.84 ,Serco Local & Regional Government
East Lindsey District Council,http://statistics.data.gov.uk/id/local-authority/32UC,East Lindsey Balance Sheet,ST Debtors HB Overpayments Control Account,03/08/2021,30002825,"1,141.48 ",South Holland District Council
East Lindsey District Council,http://statistics.data.gov.uk/id/local-authority/32UC,East Lindsey Collection Fund,Transfer Payment to BID,15/07/2021,30002701,"5,207.43 ",Lincolnshire Coastal Destination Bid
East Lindsey District Council,http://statistics.data.gov.uk/id/local-authority/32UC,Enforcement,Course Fees,23/07/2021,30002828,750.00 ,Ivy Legal
East Lindsey District Council,http://statistics.data.gov.uk/id/local-authority/32UC,Environmental Health,Professional and Contractors Fees,13/07/2021,30000401,"1,300.00 ",Arnold Funeral Service
East Lindsey District Council,http://statistics.data.gov.uk/id/local-authority/32UC,Environmental Health,Professional and Contractors Fees,29/07/2021,30002266,956.25 ,G2 Recruitment Solutions
East Lindsey District Council,http://statistics.data.gov.uk/id/local-authority/32UC,Environmental Health,Professional and Contractors Fees,23/07/2021,30002281,"1,480.00 ",The Oyster Partnership Ltd
East Lindsey District Council,http://statistics.data.gov.uk/id/local-authority/32UC,Environmental Health,Professional and Contractors Fees,08/07/2021,30002422,"1,238.45 ",Valid Consultancy Ltd
East Lindsey District Council,http://statistics.data.gov.uk/id/local-authority/32UC,Environmental Health,Professional and Contractors Fees,08/07/2021,30002464,"1,300.00 ",Arnold Funeral Service
East Lindsey District Council,http://statistics.data.gov.uk/id/local-authority/32UC,Environmental Health,Professional and Contractors Fees,08/07/2021,30002465,"1,300.00 ",Arnold Funeral Service
East Lindsey District Council,http://statistics.data.gov.uk/id/local-authority/32UC,Environmental Health,Professional and Contractors Fees,29/07/2021,30002476,"1,480.00 ",The Oyster Partnership Ltd
East Lindsey District Council,http://statistics.data.gov.uk/id/local-authority/32UC,Environmental Health,Professional and Contractors Fees,29/07/2021,30002485,"1,055.97 ",Ark Givendale Ltd
East Lindsey District Council,http://statistics.data.gov.uk/id/local-authority/32UC,Environmental Health,Professional and Contractors Fees,05/08/2021,30002619,"1,480.00 ",The Oyster Partnership Ltd
East Lindsey District Council,http://statistics.data.gov.uk/id/local-authority/32UC,Environmental Health,Professional and Contractors Fees,23/07/2021,30002871,"1,787.89 ",Sharon Redrobe Ltd
East Lindsey District Council,http://statistics.data.gov.uk/id/local-authority/32UC,Environmental Health,Professional and Contractors Fees,19/08/2021,30002912,"1,480.00 ",The Oyster Partnership Ltd
East Lindsey District Council,http://statistics.data.gov.uk/id/local-authority/32UC,Environmental Health,Professional and Contractors Fees,26/08/2021,30002950,956.25 ,G2 Recruitment Solutions
East Lindsey District Council,http://statistics.data.gov.uk/id/local-authority/32UC,Growth Relationships & Growth Promotions,External Printing and Design Costs,08/07/2021,30002241,"1,200.00 ",Ruddocks
East Lindsey District Council,http://statistics.data.gov.uk/id/local-authority/32UC,Growth Relationships & Growth Promotions,Grants and Contributions - Where a Service is Received,23/07/2021,30002578,"5,000.00 ",Zero Degrees Festival
East Lindsey District Council,http://statistics.data.gov.uk/id/local-authority/32UC,Growth Relationships & Growth Promotions,Grants and Contributions to Outside Bodies - No Service Received,27/07/2021,30002882,"1,950.00 ",PERSONAL INFORMATION REDACTED
East Lindsey District Council,http://statistics.data.gov.uk/id/local-authority/32UC,Growth Relationships & Growth Promotions,Other Communication Costs,13/07/2021,30002379,"1,000.00 ",Distract Ltd
East Lindsey District Council,http://statistics.data.gov.uk/id/local-authority/32UC,Growth Relationships & Growth Promotions,Other Miscellaneous Expenses,08/07/2021,30002225,699.00 ,GRS Signs Ltd
East Lindsey District Council,http://statistics.data.gov.uk/id/local-authority/32UC,Growth Relationships & Growth Promotions,Professional and Contractors Fees,08/07/2021,30002252,"4,250.00 ",Rose Regeneration Ltd
East Lindsey District Council,http://statistics.data.gov.uk/id/local-authority/32UC,Housing Advice & Homelessness,Bed and Breakfast Accommodation (Homelessness Service),08/07/2021,30002473,826.00 ,Bramley House Guest House
East Lindsey District Council,http://statistics.data.gov.uk/id/local-authority/32UC,Housing Advice & Homelessness,Bed and Breakfast Accommodation (Homelessness Service),08/07/2021,30002483,436.00 ,Lakeside Hotel
East Lindsey District Council,http://statistics.data.gov.uk/id/local-authority/32UC,Housing Advice & Homelessness,Bed and Breakfast Accommodation (Homelessness Service),13/07/2021,30002610,270.00 ,Beeston Lodge Hotel
East Lindsey District Council,http://statistics.data.gov.uk/id/local-authority/32UC,Housing Advice & Homelessness,Bed and Breakfast Accommodation (Homelessness Service),13/07/2021,30002612,280.00 ,Beeston Lodge Hotel
East Lindsey District Council,http://statistics.data.gov.uk/id/local-authority/32UC,Housing Advice & Homelessness,Bed and Breakfast Accommodation (Homelessness Service),13/07/2021,30002613,770.00 ,Beeston Lodge Hotel
East Lindsey District Council,http://statistics.data.gov.uk/id/local-authority/32UC,Housing Advice & Homelessness,Bed and Breakfast Accommodation (Homelessness Service),13/07/2021,30002615,390.00 ,Beeston Lodge Hotel
East Lindsey District Council,http://statistics.data.gov.uk/id/local-authority/32UC,Housing Advice & Homelessness,Bed and Breakfast Accommodation (Homelessness Service),13/07/2021,30002616,280.00 ,Beeston Lodge Hotel
East Lindsey District Council,http://statistics.data.gov.uk/id/local-authority/32UC,Housing Advice & Homelessness,Bed and Breakfast Accommodation (Homelessness Service),13/07/2021,30002617,275.00 ,Beeston Lodge Hotel
East Lindsey District Council,http://statistics.data.gov.uk/id/local-authority/32UC,Housing Advice & Homelessness,Bed and Breakfast Accommodation (Homelessness Service),20/07/2021,30002741,630.00 ,Chatsworth Hotel
East Lindsey District Council,http://statistics.data.gov.uk/id/local-authority/32UC,Housing Advice & Homelessness,Bed and Breakfast Accommodation (Homelessness Service),20/07/2021,30002744,315.00 ,Chatsworth Hotel
East Lindsey District Council,http://statistics.data.gov.uk/id/local-authority/32UC,Housing Advice & Homelessness,Compensation/Removal Expenses,23/07/2021,30002829,"2,369.75 ",PERSONAL INFORMATION REDACTED
East Lindsey District Council,http://statistics.data.gov.uk/id/local-authority/32UC,Housing Advice & Homelessness,Computer Software Purchase,29/07/2021,30002540,"5,214.00 ",Housing Partners Limited
East Lindsey District Council,http://statistics.data.gov.uk/id/local-authority/32UC,Housing Advice & Homelessness,Electricity,23/07/2021,30002551,89.84 ,British Gas
East Lindsey District Council,http://statistics.data.gov.uk/id/local-authority/32UC,Housing Advice & Homelessness,Electricity,13/07/2021,30002553,321.31 ,British Gas
East Lindsey District Council,http://statistics.data.gov.uk/id/local-authority/32UC,Housing Advice & Homelessness,Electricity,13/07/2021,30002593,321.31 ,British Gas
East Lindsey District Council,http://statistics.data.gov.uk/id/local-authority/32UC,Housing Advice & Homelessness,Electricity,23/07/2021,30002780,865.55 ,British Gas
East Lindsey District Council,http://statistics.data.gov.uk/id/local-authority/32UC,Housing Advice & Homelessness,Furniture and Equipment,27/07/2021,30001933,428.80 ,Banner Group Ltd Ta Spectrum
East Lindsey District Council,http://statistics.data.gov.uk/id/local-authority/32UC,Housing Advice & Homelessness,Furniture and Equipment,08/07/2021,30002489,345.00 ,Woodlands Retail Ltd
East Lindsey District Council,http://statistics.data.gov.uk/id/local-authority/32UC,Housing Advice & Homelessness,Furniture and Equipment,29/07/2021,30002745,"1,730.00 ",Woodlands Retail Ltd
East Lindsey District Council,http://statistics.data.gov.uk/id/local-authority/32UC,Housing Advice & Homelessness,Furniture and Equipment,23/07/2021,30002800,319.99 ,Faulkners
East Lindsey District Council,http://statistics.data.gov.uk/id/local-authority/32UC,Housing Advice & Homelessness,Furniture and Equipment,23/07/2021,30002802,394.99 ,Faulkners
East Lindsey District Council,http://statistics.data.gov.uk/id/local-authority/32UC,Housing Advice & Homelessness,Furniture and Equipment,23/07/2021,30002803,499.98 ,Faulkners
East Lindsey District Council,http://statistics.data.gov.uk/id/local-authority/32UC,Housing Advice & Homelessness,Gas,23/07/2021,30002551,156.94 ,British Gas
East Lindsey District Council,http://statistics.data.gov.uk/id/local-authority/32UC,Housing Advice & Homelessness,Gas,13/07/2021,30002553,359.16 ,British Gas
East Lindsey District Council,http://statistics.data.gov.uk/id/local-authority/32UC,Housing Advice & Homelessness,Gas,13/07/2021,30002593,359.16 ,British Gas
East Lindsey District Council,http://statistics.data.gov.uk/id/local-authority/32UC,Housing Advice & Homelessness,Gas,23/07/2021,30002779,574.31 ,British Gas
East Lindsey District Council,http://statistics.data.gov.uk/id/local-authority/32UC,Housing Advice & Homelessness,Grants and Contributions to Outside Bodies - No Service Received,20/07/2021,30001698,"5,634.87 ",J.H.A Winter and Sons Ltd
East Lindsey District Council,http://statistics.data.gov.uk/id/local-authority/32UC,Housing Advice & Homelessness,Grants and Contributions to Outside Bodies - No Service Received,20/07/2021,30001699,"4,209.94 ",Baptist Building and Roofing Co Ltd
East Lindsey District Council,http://statistics.data.gov.uk/id/local-authority/32UC,Housing Advice & Homelessness,Grants and Contributions to Outside Bodies - No Service Received,08/07/2021,30002453,"5,962.03 ",Mark Donner Ltd
East Lindsey District Council,http://statistics.data.gov.uk/id/local-authority/32UC,Housing Advice & Homelessness,Grants and Contributions to Outside Bodies - No Service Received,13/07/2021,30002500,"5,000.00 ",Citizens Advice Lindsey
East Lindsey District Council,http://statistics.data.gov.uk/id/local-authority/32UC,Housing Advice & Homelessness,Grants and Contributions to Outside Bodies - No Service Received,15/07/2021,30002659,"5,290.91 ",Gary Walmsley Construction
East Lindsey District Council,http://statistics.data.gov.uk/id/local-authority/32UC,Housing Advice & Homelessness,Grants and Contributions to Outside Bodies - No Service Received,15/07/2021,30002670,606.70 ,Baptist Building and Roofing Co Ltd
East Lindsey District Council,http://statistics.data.gov.uk/id/local-authority/32UC,Housing Advice & Homelessness,Grants and Contributions to Outside Bodies - No Service Received,20/07/2021,30002671,"2,397.67 ",Dolphin Mobility
East Lindsey District Council,http://statistics.data.gov.uk/id/local-authority/32UC,Housing Advice & Homelessness,Grants and Contributions to Outside Bodies - No Service Received,15/07/2021,30002673,"10,532.22 ",Princebuild Ltd
East Lindsey District Council,http://statistics.data.gov.uk/id/local-authority/32UC,Housing Advice & Homelessness,Grants and Contributions to Outside Bodies - No Service Received,15/07/2021,30002674,"7,371.80 ",Mark Donner Ltd
East Lindsey District Council,http://statistics.data.gov.uk/id/local-authority/32UC,Housing Advice & Homelessness,Grants and Contributions to Outside Bodies - No Service Received,15/07/2021,30002680,"6,415.69 ",R A Joinery
East Lindsey District Council,http://statistics.data.gov.uk/id/local-authority/32UC,Housing Advice & Homelessness,Grants and Contributions to Outside Bodies - No Service Received,15/07/2021,30002681,"12,339.96 ",Belton Construction
East Lindsey District Council,http://statistics.data.gov.uk/id/local-authority/32UC,Housing Advice & Homelessness,Grants and Contributions to Outside Bodies - No Service Received,15/07/2021,30002691,475.00 ,IMN Properties Ltd
East Lindsey District Council,http://statistics.data.gov.uk/id/local-authority/32UC,Housing Advice & Homelessness,Grants and Contributions to Outside Bodies - No Service Received,23/07/2021,30002845,"6,463.55 ",Crown Building Services
East Lindsey District Council,http://statistics.data.gov.uk/id/local-authority/32UC,Housing Advice & Homelessness,Grants and Contributions to Outside Bodies - No Service Received,23/07/2021,30002883,351.23 ,Platform Housing Limited
East Lindsey District Council,http://statistics.data.gov.uk/id/local-authority/32UC,Housing Advice & Homelessness,Grants and Contributions to Outside Bodies - No Service Received,27/07/2021,30002909,"3,997.95 ",Acis HomePlus Limited
East Lindsey District Council,http://statistics.data.gov.uk/id/local-authority/32UC,Housing Advice & Homelessness,Grants and Contributions to Outside Bodies - No Service Received,27/07/2021,30002917,"1,275.00 ",L I Installations
East Lindsey District Council,http://statistics.data.gov.uk/id/local-authority/32UC,Housing Advice & Homelessness,Grants and Contributions to Outside Bodies - No Service Received,03/08/2021,30003004,"11,005.20 ",Andrew Wrisdale Building Contractor
East Lindsey District Council,http://statistics.data.gov.uk/id/local-authority/32UC,Housing Advice & Homelessness,Grants and Contributions to Outside Bodies - No Service Received,03/08/2021,30003039,"3,532.27 ",Walkers Construction Ltd
East Lindsey District Council,http://statistics.data.gov.uk/id/local-authority/32UC,Housing Advice & Homelessness,Grants and Contributions to Outside Bodies - No Service Received,03/08/2021,30003040,600.00 ,GF Design Services
East Lindsey District Council,http://statistics.data.gov.uk/id/local-authority/32UC,Housing Advice & Homelessness,Mobile Phones,12/08/2021,30002926,348.83 ,Vodafone Ltd Corporate
East Lindsey District Council,http://statistics.data.gov.uk/id/local-authority/32UC,Housing Advice & Homelessness,Other Miscellaneous Expenses,06/07/2021,30002280,280.00 ,Void Property Cleaning Services Vpcs
East Lindsey District Council,http://statistics.data.gov.uk/id/local-authority/32UC,Housing Advice & Homelessness,Other Miscellaneous Expenses,08/07/2021,30002490,"1,350.00 ",Waste Away Painting Services
East Lindsey District Council,http://statistics.data.gov.uk/id/local-authority/32UC,Housing Advice & Homelessness,Other Miscellaneous Expenses,08/07/2021,30002492,380.00 ,Waste Away Clearance Service
East Lindsey District Council,http://statistics.data.gov.uk/id/local-authority/32UC,Housing Advice & Homelessness,Other Miscellaneous Expenses,08/07/2021,30002493,350.00 ,Waste Away Clearance Service
East Lindsey District Council,http://statistics.data.gov.uk/id/local-authority/32UC,Housing Advice & Homelessness,Rent Payments,15/07/2021,30002547,"2,640.00 ",Longhurst Group
East Lindsey District Council,http://statistics.data.gov.uk/id/local-authority/32UC,Housing Advice & Homelessness,Rent Payments,19/08/2021,30002938,"1,270.89 ",Platform Housing Limited
East Lindsey District Council,http://statistics.data.gov.uk/id/local-authority/32UC,Information Technology,Computer Hardware Maintenance,29/07/2021,30002672,463.23 ,Direct Telecommunications Systems
East Lindsey District Council,http://statistics.data.gov.uk/id/local-authority/32UC,Information Technology,Computer Hardware Purchase,29/07/2021,30002443,"3,724.95 ",Dell Corporation Ltd
East Lindsey District Council,http://statistics.data.gov.uk/id/local-authority/32UC,Information Technology,Computer Hardware Purchase,17/08/2021,30002967,234.74 ,Pure Audio Visual Ltd
East Lindsey District Council,http://statistics.data.gov.uk/id/local-authority/32UC,Information Technology,Computer Software Licence Costs,06/07/2021,30002211,"2,082.83 ",STM Environmantal Ltd
East Lindsey District Council,http://statistics.data.gov.uk/id/local-authority/32UC,Information Technology,Computer Software Licence Costs,29/07/2021,30002247,"3,540.00 ",Goss Interactive Ltd
East Lindsey District Council,http://statistics.data.gov.uk/id/local-authority/32UC,Information Technology,Materials and Consumables,29/07/2021,30002443,42.18 ,Dell Corporation Ltd
East Lindsey District Council,http://statistics.data.gov.uk/id/local-authority/32UC,Information Technology,Mobile Phones,08/07/2021,30002387,"3,113.43 ",Vodafone Ltd Corporate
East Lindsey District Council,http://statistics.data.gov.uk/id/local-authority/32UC,Information Technology,Mobile Phones,23/07/2021,30002388,"3,035.49 ",Vodafone Ltd Corporate
East Lindsey District Council,http://statistics.data.gov.uk/id/local-authority/32UC,Information Technology,Professional and Contractors Fees,27/07/2021,30001062,"4,550.00 ",Pentest People
East Lindsey District Council,http://statistics.data.gov.uk/id/local-authority/32UC,Information Technology,Telephones,29/07/2021,30002597,"2,405.78 ",Daisy Corporate Services Trading Ltd
East Lindsey District Council,http://statistics.data.gov.uk/id/local-authority/32UC,Information Technology,Telephones,12/08/2021,30002820,"1,009.61 ",Nominet UK
East Lindsey District Council,http://statistics.data.gov.uk/id/local-authority/32UC,Information Technology,Telephones,03/08/2021,30002915,"12,940.92 ",Lincolnshire County Council
East Lindsey District Council,http://statistics.data.gov.uk/id/local-authority/32UC,Leisure Operations,Buildings Maintenance - Programmed,20/07/2021,30002231,240.00 ,Airco Refrigeration Air Conditioning Ltd
East Lindsey District Council,http://statistics.data.gov.uk/id/local-authority/32UC,Leisure Operations,Buildings Maintenance - Programmed,20/07/2021,30002794,600.00 ,Bates Environmental Ltd
East Lindsey District Council,http://statistics.data.gov.uk/id/local-authority/32UC,Leisure Operations,Buildings Maintenance - Programmed,19/08/2021,30002953,470.00 ,Airco Refrigeration Air Conditioning Ltd
East Lindsey District Council,http://statistics.data.gov.uk/id/local-authority/32UC,Leisure Operations,Buildings Maintenance - Responsive,29/07/2021,30002226,296.00 ,Airco Refrigeration Air Conditioning Ltd
East Lindsey District Council,http://statistics.data.gov.uk/id/local-authority/32UC,Leisure Operations,Buildings Maintenance - Responsive,29/07/2021,30002229,"1,086.00 ",H20 Servicing Ltd
East Lindsey District Council,http://statistics.data.gov.uk/id/local-authority/32UC,Leisure Operations,Buildings Maintenance - Responsive,12/08/2021,30002791,223.74 ,Airco Refrigeration Air Conditioning Ltd
East Lindsey District Council,http://statistics.data.gov.uk/id/local-authority/32UC,Leisure Operations,Buildings Maintenance - Responsive,03/08/2021,30002837,220.00 ,Aegis Technologies
East Lindsey District Council,http://statistics.data.gov.uk/id/local-authority/32UC,Neighbourhoods,Agency Staff,23/07/2021,30002518,"10,411.07 ",The Workshop (Wisbech) Ltd
East Lindsey District Council,http://statistics.data.gov.uk/id/local-authority/32UC,Neighbourhoods,Agency Staff,23/07/2021,30002521,"8,157.52 ",The Workshop (Wisbech) Ltd
East Lindsey District Council,http://statistics.data.gov.uk/id/local-authority/32UC,Neighbourhoods,Agency Staff,15/07/2021,30002608,626.40 ,Reilyn Ltd
East Lindsey District Council,http://statistics.data.gov.uk/id/local-authority/32UC,Neighbourhoods,Agency Staff,23/07/2021,30002718,"8,234.83 ",The Workshop (Wisbech) Ltd
East Lindsey District Council,http://statistics.data.gov.uk/id/local-authority/32UC,Neighbourhoods,Agency Staff,27/07/2021,30002747,626.40 ,Reilyn Ltd
East Lindsey District Council,http://statistics.data.gov.uk/id/local-authority/32UC,Neighbourhoods,Agency Staff,03/08/2021,30002934,278.40 ,Reilyn Ltd
East Lindsey District Council,http://statistics.data.gov.uk/id/local-authority/32UC,Neighbourhoods,Agency Staff,03/08/2021,30003017,406.80 ,Reilyn Ltd
East Lindsey District Council,http://statistics.data.gov.uk/id/local-authority/32UC,Neighbourhoods,Agency Staff,10/08/2021,30003018,417.60 ,Reilyn Ltd
East Lindsey District Council,http://statistics.data.gov.uk/id/local-authority/32UC,Neighbourhoods,Agency Staff,05/08/2021,30003019,"8,152.93 ",The Workshop (Wisbech) Ltd
East Lindsey District Council,http://statistics.data.gov.uk/id/local-authority/32UC,Neighbourhoods,Agency Staff,03/08/2021,30003022,"7,031.30 ",The Workshop (Wisbech) Ltd
East Lindsey District Council,http://statistics.data.gov.uk/id/local-authority/32UC,Neighbourhoods,Agency Staff,03/08/2021,30003026,"8,437.55 ",The Workshop (Wisbech) Ltd
East Lindsey District Council,http://statistics.data.gov.uk/id/local-authority/32UC,Neighbourhoods,Buildings Maintenance - Programmed,29/07/2021,30002408,"3,684.20 ",Evoqua Water Technologies Ltd
East Lindsey District Council,http://statistics.data.gov.uk/id/local-authority/32UC,Neighbourhoods,Buildings Maintenance - Programmed,29/07/2021,30002409,"3,684.20 ",Evoqua Water Technologies Ltd
East Lindsey District Council,http://statistics.data.gov.uk/id/local-authority/32UC,Neighbourhoods,Buildings Maintenance - Programmed,15/07/2021,30002459,800.00 ,Rubaroc
East Lindsey District Council,http://statistics.data.gov.uk/id/local-authority/32UC,Neighbourhoods,Buildings Maintenance - Programmed,15/07/2021,30002595,283.38 ,Second Element Limited
East Lindsey District Council,http://statistics.data.gov.uk/id/local-authority/32UC,Neighbourhoods,Buildings Maintenance - Programmed,15/07/2021,30002647,"4,155.00 ",Alfred Bagnall and Sons (EM) Ltd
East Lindsey District Council,http://statistics.data.gov.uk/id/local-authority/32UC,Neighbourhoods,Buildings Maintenance - Programmed,15/07/2021,30002648,"1,225.00 ",Alfred Bagnall and Sons (EM) Ltd
East Lindsey District Council,http://statistics.data.gov.uk/id/local-authority/32UC,Neighbourhoods,Buildings Maintenance - Programmed,15/07/2021,30002668,600.00 ,Devlin Decorators Limited
East Lindsey District Council,http://statistics.data.gov.uk/id/local-authority/32UC,Neighbourhoods,Buildings Maintenance - Programmed,20/07/2021,30002704,"10,000.00 ",Gelder Ltd
East Lindsey District Council,http://statistics.data.gov.uk/id/local-authority/32UC,Neighbourhoods,Buildings Maintenance - Programmed,20/07/2021,30002705,"10,000.00 ",Gelder Ltd
East Lindsey District Council,http://statistics.data.gov.uk/id/local-authority/32UC,Neighbourhoods,Buildings Maintenance - Programmed,20/07/2021,30002733,"3,482.00 ",Devlin Decorators Limited
East Lindsey District Council,http://statistics.data.gov.uk/id/local-authority/32UC,Neighbourhoods,Buildings Maintenance - Programmed,23/07/2021,30002891,"10,000.00 ",Gelder Ltd
East Lindsey District Council,http://statistics.data.gov.uk/id/local-authority/32UC,Neighbourhoods,Buildings Maintenance - Programmed,23/07/2021,30002892,"10,000.00 ",Gelder Ltd
East Lindsey District Council,http://statistics.data.gov.uk/id/local-authority/32UC,Neighbourhoods,Buildings Maintenance - Responsive,12/08/2021,30002717,449.25 ,Stowlin Ltd
East Lindsey District Council,http://statistics.data.gov.uk/id/local-authority/32UC,Neighbourhoods,Buildings Maintenance - Responsive,29/07/2021,30002778,"2,220.00 ",GRS Signs Ltd
East Lindsey District Council,http://statistics.data.gov.uk/id/local-authority/32UC,Neighbourhoods,Buildings Maintenance - Responsive,17/08/2021,30002824,429.88 ,Stowlin Ltd
East Lindsey District Council,http://statistics.data.gov.uk/id/local-authority/32UC,Neighbourhoods,Fuel and Oil,27/07/2021,30002258,598.10 ,Watson Fuels
East Lindsey District Council,http://statistics.data.gov.uk/id/local-authority/32UC,Neighbourhoods,Grounds Maintenance Contract (External),29/07/2021,30002524,"12,105.09 ",Glendale Grounds Management Limited
East Lindsey District Council,http://statistics.data.gov.uk/id/local-authority/32UC,Neighbourhoods,Maintenance,13/07/2021,30002533,275.00 ,M J Windscreens Ltd
East Lindsey District Council,http://statistics.data.gov.uk/id/local-authority/32UC,Neighbourhoods,Materials and Consumables,23/07/2021,30002065,364.86 ,Reactec Ltd
East Lindsey District Council,http://statistics.data.gov.uk/id/local-authority/32UC,Neighbourhoods,Materials and Consumables,05/08/2021,30002598,"1,675.12 ",Probrush Northern Municipal Spares Ltd
East Lindsey District Council,http://statistics.data.gov.uk/id/local-authority/32UC,Neighbourhoods,Materials and Consumables,23/07/2021,30002660,827.54 ,Watson Fuels
East Lindsey District Council,http://statistics.data.gov.uk/id/local-authority/32UC,Neighbourhoods,Materials and Consumables,17/08/2021,30002889,832.70 ,Eastern Shires Purchasing Organisation
East Lindsey District Council,http://statistics.data.gov.uk/id/local-authority/32UC,Neighbourhoods,Materials and Consumables,05/08/2021,30002949,917.60 ,Nomix Enviro
East Lindsey District Council,http://statistics.data.gov.uk/id/local-authority/32UC,Neighbourhoods,Other Private Contractors,29/07/2021,30002933,"38,599.92 ",Danfo UK Ltd
East Lindsey District Council,http://statistics.data.gov.uk/id/local-authority/32UC,Neighbourhoods,Professional and Contractors Fees,29/07/2021,30002275,"15,816.50 ",Aldby Field Nurseries
East Lindsey District Council,http://statistics.data.gov.uk/id/local-authority/32UC,Neighbourhoods,Professional and Contractors Fees,15/07/2021,30002576,530.00 ,Sid Dennis and Sons Ltd
East Lindsey District Council,http://statistics.data.gov.uk/id/local-authority/32UC,Neighbourhoods,Professional and Contractors Fees,12/08/2021,30002694,"5,000.00 ",Working Time Solutions Ltd
East Lindsey District Council,http://statistics.data.gov.uk/id/local-authority/32UC,Neighbourhoods,Professional and Contractors Fees,23/07/2021,30002714,636.00 ,Sid Dennis and Sons Ltd
East Lindsey District Council,http://statistics.data.gov.uk/id/local-authority/32UC,Neighbourhoods,Professional and Contractors Fees,05/08/2021,30003020,848.00 ,Sid Dennis and Sons Ltd
East Lindsey District Council,http://statistics.data.gov.uk/id/local-authority/32UC,Neighbourhoods,Professional and Contractors Fees,05/08/2021,30003021,212.00 ,Sid Dennis and Sons Ltd
East Lindsey District Council,http://statistics.data.gov.uk/id/local-authority/32UC,Neighbourhoods,Staff Training Expenses (Non-Payroll),15/07/2021,30002541,681.00 ,East Lincs Rural Training
East Lindsey District Council,http://statistics.data.gov.uk/id/local-authority/32UC,Neighbourhoods,Water and Sewerage Charges,08/07/2021,30002276,"1,064.38 ",Wave Anglian Water Business National Ltd
East Lindsey District Council,http://statistics.data.gov.uk/id/local-authority/32UC,Neighbourhoods,Water and Sewerage Charges,23/07/2021,30002810,"1,973.08 ",Wave Anglian Water Business National Ltd
East Lindsey District Council,http://statistics.data.gov.uk/id/local-authority/32UC,Neighbourhoods,Water and Sewerage Charges,29/07/2021,30002849,"1,499.40 ",Wave Anglian Water Business National Ltd
East Lindsey District Council,http://statistics.data.gov.uk/id/local-authority/32UC,Organisational Improvement & Development,External Printing and Design Costs,13/07/2021,30002543,800.00 ,Lisa Jayne Creative Ltd
East Lindsey District Council,http://statistics.data.gov.uk/id/local-authority/32UC,"Performance, Governance & Commissioning",External Printing and Design Costs,29/07/2021,30002512,534.90 ,Civica Election Services
East Lindsey District Council,http://statistics.data.gov.uk/id/local-authority/32UC,"Performance, Governance & Commissioning",Grants and Contributions to Outside Bodies - No Service Received,13/07/2021,30002504,"1,000.00 ",MTS Entertainers
East Lindsey District Council,http://statistics.data.gov.uk/id/local-authority/32UC,"Performance, Governance & Commissioning",Grants and Contributions to Outside Bodies - No Service Received,15/07/2021,30002544,"1,000.00 ",South Somercotes Parish Council
East Lindsey District Council,http://statistics.data.gov.uk/id/local-authority/32UC,"Performance, Governance & Commissioning",Grants and Contributions to Outside Bodies - No Service Received,23/07/2021,30002808,500.00 ,Louth Independent Traders
East Lindsey District Council,http://statistics.data.gov.uk/id/local-authority/32UC,"Performance, Governance & Commissioning",Grants and Contributions to Outside Bodies - No Service Received,27/07/2021,30002929,"27,800.00 ",Citizens Advice Lindsey
East Lindsey District Council,http://statistics.data.gov.uk/id/local-authority/32UC,"Performance, Governance & Commissioning",Grants and Contributions to Outside Bodies - No Service Received,03/08/2021,30003000,400.00 ,North and South Somercotes PCC
East Lindsey District Council,http://statistics.data.gov.uk/id/local-authority/32UC,"Performance, Governance & Commissioning",Legal Fees,23/07/2021,30002046,"16,320.00 ",Serjeants Inn
East Lindsey District Council,http://statistics.data.gov.uk/id/local-authority/32UC,"Performance, Governance & Commissioning",Legal Fees,03/08/2021,30002939,"1,920.00 ",Serjeants Inn
East Lindsey District Council,http://statistics.data.gov.uk/id/local-authority/32UC,"Performance, Governance & Commissioning",Postages,08/07/2021,30002445,"3,097.98 ",Royal Mail Group Ltd
East Lindsey District Council,http://statistics.data.gov.uk/id/local-authority/32UC,"Performance, Governance & Commissioning",Postages,13/07/2021,30002460,"4,843.66 ",Royal Mail Group Ltd
East Lindsey District Council,http://statistics.data.gov.uk/id/local-authority/32UC,"Performance, Governance & Commissioning",Postages,29/07/2021,30002512,542.25 ,Civica Election Services
East Lindsey District Council,http://statistics.data.gov.uk/id/local-authority/32UC,"Performance, Governance & Commissioning",Postages,13/07/2021,30002628,"1,190.57 ",Royal Mail Group Ltd
East Lindsey District Council,http://statistics.data.gov.uk/id/local-authority/32UC,"Performance, Governance & Commissioning",Postages,20/07/2021,30002710,50.60 ,Royal Mail Group Ltd
East Lindsey District Council,http://statistics.data.gov.uk/id/local-authority/32UC,"Performance, Governance & Commissioning",Rent Payments,06/07/2021,30002220,950.00 ,Skegness Pensioners Assembly Hall
East Lindsey District Council,http://statistics.data.gov.uk/id/local-authority/32UC,"Performance, Governance & Commissioning",Rent Payments,08/07/2021,30002468,270.00 ,Cracroft Village Hall
East Lindsey District Council,http://statistics.data.gov.uk/id/local-authority/32UC,"Performance, Governance & Commissioning",Rent Payments,27/07/2021,30002945,350.00 ,The Meridale Organisation
East Lindsey District Council,http://statistics.data.gov.uk/id/local-authority/32UC,"Performance, Governance & Commissioning",Rent Payments,19/08/2021,30002976,770.00 ,Gipsey Bridge Methodist Chapel
East Lindsey District Council,http://statistics.data.gov.uk/id/local-authority/32UC,Planning Policy,Professional and Contractors Fees,19/08/2021,30002916,"4,600.00 ",Capita Business Services Ltd
East Lindsey District Council,http://statistics.data.gov.uk/id/local-authority/32UC,Property,Agency Staff,15/07/2021,30002587,406.08 ,The Workshop (Wisbech) Ltd
East Lindsey District Council,http://statistics.data.gov.uk/id/local-authority/32UC,Property,Agency Staff,13/07/2021,30002656,507.60 ,The Workshop (Wisbech) Ltd
East Lindsey District Council,http://statistics.data.gov.uk/id/local-authority/32UC,Property,Agency Staff,29/07/2021,30002873,507.60 ,The Workshop (Wisbech) Ltd
East Lindsey District Council,http://statistics.data.gov.uk/id/local-authority/32UC,Property,Agency Staff,23/07/2021,30002874,406.08 ,The Workshop (Wisbech) Ltd
East Lindsey District Council,http://statistics.data.gov.uk/id/local-authority/32UC,Property,Buildings Maintenance - Programmed,29/07/2021,30002223,"3,936.00 ",Qualsurv International Ltd
East Lindsey District Council,http://statistics.data.gov.uk/id/local-authority/32UC,Property,Buildings Maintenance - Programmed,08/07/2021,30002444,219.00 ,Smith of Derby
East Lindsey District Council,http://statistics.data.gov.uk/id/local-authority/32UC,Property,Buildings Maintenance - Programmed,15/07/2021,30002545,630.00 ,Aegis Technologies
East Lindsey District Council,http://statistics.data.gov.uk/id/local-authority/32UC,Property,Buildings Maintenance - Programmed,15/07/2021,30002667,345.00 ,Devlin Decorators Limited
East Lindsey District Council,http://statistics.data.gov.uk/id/local-authority/32UC,Property,Buildings Maintenance - Programmed,15/07/2021,30002669,"1,200.00 ",Devlin Decorators Limited
East Lindsey District Council,http://statistics.data.gov.uk/id/local-authority/32UC,Property,Buildings Maintenance - Programmed,20/07/2021,30002719,250.00 ,Safe Sound Security Systems Links Ltd
East Lindsey District Council,http://statistics.data.gov.uk/id/local-authority/32UC,Property,Buildings Maintenance - Programmed,29/07/2021,30002746,875.00 ,Qualsurv International Ltd
East Lindsey District Council,http://statistics.data.gov.uk/id/local-authority/32UC,Property,Buildings Maintenance - Programmed,20/07/2021,30002764,"1,032.00 ",NBC Environment
East Lindsey District Council,http://statistics.data.gov.uk/id/local-authority/32UC,Property,Buildings Maintenance - Programmed,20/07/2021,30002767,"1,032.00 ",NBC Environment
East Lindsey District Council,http://statistics.data.gov.uk/id/local-authority/32UC,Property,Buildings Maintenance - Programmed,27/07/2021,30002771,273.70 ,Town End (Leeds) Plc
East Lindsey District Council,http://statistics.data.gov.uk/id/local-authority/32UC,Property,Buildings Maintenance - Programmed,29/07/2021,30002781,597.50 ,Carl Bradley
East Lindsey District Council,http://statistics.data.gov.uk/id/local-authority/32UC,Property,Buildings Maintenance - Programmed,20/07/2021,30002794,"1,200.00 ",Bates Environmental Ltd
East Lindsey District Council,http://statistics.data.gov.uk/id/local-authority/32UC,Property,Buildings Maintenance - Responsive,20/07/2021,30002446,320.38 ,N & C Building Products Ltd
East Lindsey District Council,http://statistics.data.gov.uk/id/local-authority/32UC,Property,Buildings Maintenance - Responsive,15/07/2021,30002546,972.97 ,GRS Signs Ltd
East Lindsey District Council,http://statistics.data.gov.uk/id/local-authority/32UC,Property,Buildings Maintenance - Responsive,13/07/2021,30002649,700.00 ,Lincolnshire County Council
East Lindsey District Council,http://statistics.data.gov.uk/id/local-authority/32UC,Property,Buildings Maintenance - Responsive,29/07/2021,30002662,250.00 ,Airco Refrigeration Air Conditioning Ltd
East Lindsey District Council,http://statistics.data.gov.uk/id/local-authority/32UC,Property,Buildings Maintenance - Responsive,12/08/2021,30002720,655.00 ,Stowlin Ltd
East Lindsey District Council,http://statistics.data.gov.uk/id/local-authority/32UC,Property,Buildings Maintenance - Responsive,12/08/2021,30002782,776.80 ,Midlands Signs Leicester Ltd
East Lindsey District Council,http://statistics.data.gov.uk/id/local-authority/32UC,Property,Buildings Maintenance - Responsive,23/07/2021,30002815,"3,124.00 ",Dave Skells Traffic Management Ltd
East Lindsey District Council,http://statistics.data.gov.uk/id/local-authority/32UC,Property,Buildings Maintenance - Responsive,23/07/2021,30002886,468.03 ,TVF UK Limited
East Lindsey District Council,http://statistics.data.gov.uk/id/local-authority/32UC,Property,Buildings Maintenance - Responsive,05/08/2021,30002964,275.00 ,D and D Engineering Lincs Ltd
East Lindsey District Council,http://statistics.data.gov.uk/id/local-authority/32UC,Property,Buildings Maintenance - Responsive,05/08/2021,30002965,265.00 ,D and D Engineering Lincs Ltd
East Lindsey District Council,http://statistics.data.gov.uk/id/local-authority/32UC,Property,Cleaning Contract,13/07/2021,30002486,867.00 ,Easy Clean Marshchapel Ltd
East Lindsey District Council,http://statistics.data.gov.uk/id/local-authority/32UC,Property,Cleaning Contract,13/07/2021,30002487,520.80 ,Easy Clean Marshchapel Ltd
East Lindsey District Council,http://statistics.data.gov.uk/id/local-authority/32UC,Property,Fixtures And Fittings,19/08/2021,30002925,"21,201.24 ",Blachere Illumination UK Ltd
East Lindsey District Council,http://statistics.data.gov.uk/id/local-authority/32UC,Property,Furniture and Equipment,08/07/2021,30002221,"1,419.59 ",Paperwork
East Lindsey District Council,http://statistics.data.gov.uk/id/local-authority/32UC,Property,Furniture and Equipment,23/07/2021,30002224,"1,000.00 ",Francotyp Postalia Ltd (teleset)
East Lindsey District Council,http://statistics.data.gov.uk/id/local-authority/32UC,Property,Furniture and Equipment,06/07/2021,30002420,326.65 ,GRS Electrical Services Ltd
East Lindsey District Council,http://statistics.data.gov.uk/id/local-authority/32UC,Property,Furniture and Equipment,29/07/2021,30002488,817.57 ,Western Power Distribution
East Lindsey District Council,http://statistics.data.gov.uk/id/local-authority/32UC,Property,Furniture and Equipment,13/07/2021,30002579,300.00 ,Digicube Ltd
East Lindsey District Council,http://statistics.data.gov.uk/id/local-authority/32UC,Property,Furniture and Equipment,15/07/2021,30002651,572.22 ,GRS Signs Ltd
East Lindsey District Council,http://statistics.data.gov.uk/id/local-authority/32UC,Property,Furniture and Equipment,23/07/2021,30002799,300.00 ,Digicube Ltd
East Lindsey District Council,http://statistics.data.gov.uk/id/local-authority/32UC,Property,Furniture and Equipment,10/08/2021,30002832,433.00 ,New Start Networks Ltd
East Lindsey District Council,http://statistics.data.gov.uk/id/local-authority/32UC,Property,Furniture and Equipment,27/07/2021,30002907,433.00 ,New Start Networks Ltd
East Lindsey District Council,http://statistics.data.gov.uk/id/local-authority/32UC,Property,Furniture and Equipment,26/08/2021,30002961,"3,445.00 ",International Parking Systems UK Grp Ltd
East Lindsey District Council,http://statistics.data.gov.uk/id/local-authority/32UC,Property,License Fees,23/07/2021,30002278,500.00 ,Tinn Criddle Hall Solicitors
East Lindsey District Council,http://statistics.data.gov.uk/id/local-authority/32UC,Property,License Fees,27/07/2021,30002923,"2,000.00 ",PERSONAL INFORMATION REDACTED
East Lindsey District Council,http://statistics.data.gov.uk/id/local-authority/32UC,Property,Materials and Consumables,23/07/2021,30002639,447.80 ,Nomix Enviro
East Lindsey District Council,http://statistics.data.gov.uk/id/local-authority/32UC,Property,Payments to Bodies in Respect of Income Collected,05/08/2021,30002696,"1,840.86 ",Tesco Stores Ltd
East Lindsey District Council,http://statistics.data.gov.uk/id/local-authority/32UC,Property,Postages,23/07/2021,30002639,11.00 ,Nomix Enviro
East Lindsey District Council,http://statistics.data.gov.uk/id/local-authority/32UC,Property,Postages,20/07/2021,30002773,"1,000.00 ",Francotyp Postalia Ltd (teleset)
East Lindsey District Council,http://statistics.data.gov.uk/id/local-authority/32UC,Property,Postages,20/07/2021,30002774,"1,000.00 ",Francotyp Postalia Ltd (teleset)
East Lindsey District Council,http://statistics.data.gov.uk/id/local-authority/32UC,Property,Professional and Contractors Fees,06/07/2021,30002253,"2,839.83 ",Kings Armoured Security Services Ltd
East Lindsey District Council,http://statistics.data.gov.uk/id/local-authority/32UC,Property,Professional and Contractors Fees,06/07/2021,30002254,322.77 ,Kings Armoured Security Services Ltd
East Lindsey District Council,http://statistics.data.gov.uk/id/local-authority/32UC,Property,Professional and Contractors Fees,29/07/2021,30002432,"23,786.40 ",International Parking Systems UK Grp Ltd
East Lindsey District Council,http://statistics.data.gov.uk/id/local-authority/32UC,Property,Professional and Contractors Fees,08/07/2021,30002447,"2,367.75 ",Michael Page Int Recruitment Ltd
East Lindsey District Council,http://statistics.data.gov.uk/id/local-authority/32UC,Property,Professional and Contractors Fees,27/07/2021,30002449,"5,840.45 ",Biffa Waste Services Ltd
East Lindsey District Council,http://statistics.data.gov.uk/id/local-authority/32UC,Property,Professional and Contractors Fees,15/07/2021,30002450,"1,050.00 ",M.A.P Security Solutions Ltd
East Lindsey District Council,http://statistics.data.gov.uk/id/local-authority/32UC,Property,Professional and Contractors Fees,29/07/2021,30002461,"3,343.89 ",Kings Armoured Security Services Ltd
East Lindsey District Council,http://statistics.data.gov.uk/id/local-authority/32UC,Property,Professional and Contractors Fees,13/07/2021,30002527,778.63 ,Phs Group
East Lindsey District Council,http://statistics.data.gov.uk/id/local-authority/32UC,Property,Professional and Contractors Fees,23/07/2021,30002561,250.00 ,Biffa Waste Services Ltd
East Lindsey District Council,http://statistics.data.gov.uk/id/local-authority/32UC,Property,Professional and Contractors Fees,15/07/2021,30002645,448.00 ,Aegis Technologies
East Lindsey District Council,http://statistics.data.gov.uk/id/local-authority/32UC,Property,Professional and Contractors Fees,29/07/2021,30002811,508.62 ,Chipside Ltd
East Lindsey District Council,http://statistics.data.gov.uk/id/local-authority/32UC,Property,Professional and Contractors Fees,29/07/2021,30002812,877.76 ,Chipside Ltd
East Lindsey District Council,http://statistics.data.gov.uk/id/local-authority/32UC,Property,Professional and Contractors Fees,12/08/2021,30002888,"1,502.60 ",Acorn Construction (Yorkshire) Ltd
East Lindsey District Council,http://statistics.data.gov.uk/id/local-authority/32UC,Property,Professional and Contractors Fees,03/08/2021,30003001,"3,987.25 ",Michael Page Int Recruitment Ltd
East Lindsey District Council,http://statistics.data.gov.uk/id/local-authority/32UC,Property,Professional Fees,08/07/2021,30002462,240.00 ,Axis Surveys Ltd
East Lindsey District Council,http://statistics.data.gov.uk/id/local-authority/32UC,Property,Water and Sewerage Charges,08/07/2021,30002436,"9,780.20 ",Wave Anglian Water Business National Ltd
East Lindsey District Council,http://statistics.data.gov.uk/id/local-authority/32UC,Property,Water and Sewerage Charges,05/08/2021,30002833,312.65 ,Environment Agency
East Lindsey District Council,http://statistics.data.gov.uk/id/local-authority/32UC,Property,Water and Sewerage Charges,29/07/2021,30002956,522.22 ,Wave Anglian Water Business National Ltd
East Lindsey District Council,http://statistics.data.gov.uk/id/local-authority/32UC,Public Protection,Professional and Contractors Fees,08/07/2021,30002479,"3,055.64 ",Lincolnshire County Council
East Lindsey District Council,http://statistics.data.gov.uk/id/local-authority/32UC,Public Protection,Professional and Contractors Fees,20/07/2021,30002676,"2,882.34 ",Lincolnshire County Council
East Lindsey District Council,http://statistics.data.gov.uk/id/local-authority/32UC,Public Protection,Professional and Contractors Fees,20/07/2021,30002722,261.67 ,Rase Veterinary Equine
East Lindsey District Council,http://statistics.data.gov.uk/id/local-authority/32UC,Public Protection,Professional and Contractors Fees,20/07/2021,30002727,312.50 ,Hill Phelan Equine Farm Vet Surgeons
East Lindsey District Council,http://statistics.data.gov.uk/id/local-authority/32UC,Public Protection,Professional and Contractors Fees,27/07/2021,30002924,505.00 ,Fenwold Veterinary Practice Ltd
East Lindsey District Council,http://statistics.data.gov.uk/id/local-authority/32UC,Public Protection,Professional and Contractors Fees,29/07/2021,30002987,508.33 ,Hill Phelan Equine Farm Vet Surgeons
East Lindsey District Council,http://statistics.data.gov.uk/id/local-authority/32UC,Public Protection,Professional and Contractors Fees,03/08/2021,30003041,371.67 ,Rase Veterinary Equine
East Lindsey District Council,http://statistics.data.gov.uk/id/local-authority/32UC,Public Protection,Professional Fees,20/07/2021,30002723,308.33 ,Hill Phelan Equine Farm Vet Surgeons
East Lindsey District Council,http://statistics.data.gov.uk/id/local-authority/32UC,Public Protection,Professional Fees,20/07/2021,30002727,358.32 ,Hill Phelan Equine Farm Vet Surgeons
East Lindsey District Council,http://statistics.data.gov.uk/id/local-authority/32UC,Public Protection,Professional Fees,29/07/2021,30002987,271.66 ,Hill Phelan Equine Farm Vet Surgeons
East Lindsey District Council,http://statistics.data.gov.uk/id/local-authority/32UC,Theatre,Buildings Maintenance - Responsive,05/08/2021,30002620,292.50 ,Morris Vermaport Ltd
East Lindsey District Council,http://statistics.data.gov.uk/id/local-authority/32UC,Waste,Agency Staff,08/07/2021,30002269,"6,439.95 ",Red Rock Partnership Ltd
East Lindsey District Council,http://statistics.data.gov.uk/id/local-authority/32UC,Waste,Agency Staff,08/07/2021,30002277,646.00 ,Reilyn Ltd
East Lindsey District Council,http://statistics.data.gov.uk/id/local-authority/32UC,Waste,Agency Staff,29/07/2021,30002526,454.38 ,The Best Connection Group Ltd
East Lindsey District Council,http://statistics.data.gov.uk/id/local-authority/32UC,Waste,Agency Staff,15/07/2021,30002559,"6,270.58 ",Red Rock Partnership Ltd
East Lindsey District Council,http://statistics.data.gov.uk/id/local-authority/32UC,Waste,Agency Staff,15/07/2021,30002606,646.00 ,Reilyn Ltd
East Lindsey District Council,http://statistics.data.gov.uk/id/local-authority/32UC,Waste,Agency Staff,23/07/2021,30002725,"5,187.16 ",Red Rock Partnership Ltd
East Lindsey District Council,http://statistics.data.gov.uk/id/local-authority/32UC,Waste,Agency Staff,03/08/2021,30002879,646.00 ,Reilyn Ltd
East Lindsey District Council,http://statistics.data.gov.uk/id/local-authority/32UC,Waste,Agency Staff,27/07/2021,30002881,646.00 ,Reilyn Ltd
East Lindsey District Council,http://statistics.data.gov.uk/id/local-authority/32UC,Waste,Agency Staff,29/07/2021,30002893,"5,500.74 ",Red Rock Partnership Ltd
East Lindsey District Council,http://statistics.data.gov.uk/id/local-authority/32UC,Waste,Agency Staff,12/08/2021,30002932,374.95 ,The Best Connection Group Ltd
East Lindsey District Council,http://statistics.data.gov.uk/id/local-authority/32UC,Waste,Agency Staff,05/08/2021,30002963,544.51 ,The Best Connection Group Ltd
East Lindsey District Council,http://statistics.data.gov.uk/id/local-authority/32UC,Waste,Agency Staff,10/08/2021,30003002,658.08 ,Reilyn Ltd
East Lindsey District Council,http://statistics.data.gov.uk/id/local-authority/32UC,Waste,Agency Staff,05/08/2021,30003016,"4,807.68 ",Red Rock Partnership Ltd
East Lindsey District Council,http://statistics.data.gov.uk/id/local-authority/32UC,Waste,External Printing and Design Costs,29/07/2021,30002955,725.00 ,The Guardian Press (Boston) Limited
East Lindsey District Council,http://statistics.data.gov.uk/id/local-authority/32UC,Waste,Fuel and Oil,13/07/2021,30002675,"4,589.17 ",Allstar Business Solutions Ltd
East Lindsey District Council,http://statistics.data.gov.uk/id/local-authority/32UC,Waste,Fuel and Oil,29/07/2021,30002678,"3,879.77 ",Allstar Business Solutions Ltd
East Lindsey District Council,http://statistics.data.gov.uk/id/local-authority/32UC,Waste,Fuel and Oil,12/08/2021,30002877,"1,918.80 ",Morris Lubricants
East Lindsey District Council,http://statistics.data.gov.uk/id/local-authority/32UC,Waste,Furniture and Equipment,08/07/2021,30002441,"4,635.66 ",Safe Sound Security Systems Links Ltd
East Lindsey District Council,http://statistics.data.gov.uk/id/local-authority/32UC,Waste,Insurance,13/07/2021,30002652,"1,999.11 ",PERSONAL INFORMATION REDACTED
East Lindsey District Council,http://statistics.data.gov.uk/id/local-authority/32UC,Waste,Maintenance,13/07/2021,30002532,350.00 ,M J Windscreens Ltd
East Lindsey District Council,http://statistics.data.gov.uk/id/local-authority/32UC,Waste,Materials and Consumables,15/07/2021,30002438,"1,194.00 ",Witham Oil & Paint Ltd
East Lindsey District Council,http://statistics.data.gov.uk/id/local-authority/32UC,Waste,Materials and Consumables,08/07/2021,30002452,"2,860.00 ",ESE Ltd
East Lindsey District Council,http://statistics.data.gov.uk/id/local-authority/32UC,Waste,Materials and Consumables,05/08/2021,30002507,237.60 ,Arco Ltd
East Lindsey District Council,http://statistics.data.gov.uk/id/local-authority/32UC,Waste,Other Communication Costs,15/07/2021,30001303,400.42 ,Matrix Network Services Ltd
East Lindsey District Council,http://statistics.data.gov.uk/id/local-authority/32UC,Waste,Other Private Contractors,29/07/2021,30002534,"1,096.35 ",Glass Recycling UK Ltd
East Lindsey District Council,http://statistics.data.gov.uk/id/local-authority/32UC,Waste,Professional and Contractors Fees,23/07/2021,30002677,420.00 ,Systematic Print Management Ltd
East Lindsey District Council,http://statistics.data.gov.uk/id/local-authority/32UC,Waste,Professional and Contractors Fees,23/07/2021,30002868,594.00 ,Licence Bureau
East Lindsey District Council,http://statistics.data.gov.uk/id/local-authority/32UC,Waste,Vehicle Recovery,06/07/2021,30002437,385.00 ,Peter & David Cosby
East Lindsey District Council,http://statistics.data.gov.uk/id/local-authority/32UC,Waste,Vehicle Recovery,23/07/2021,30002826,385.00 ,Peter & David Cosby
East Lindsey District Council,http://statistics.data.gov.uk/id/local-authority/32UC,Waste,Workshop Parts,23/07/2021,30002262,245.82 ,Partic Motor Spares Ltd
East Lindsey District Council,http://statistics.data.gov.uk/id/local-authority/32UC,Waste,Workshop Parts,23/07/2021,30002264,245.30 ,Partic Motor Spares Ltd
East Lindsey District Council,http://statistics.data.gov.uk/id/local-authority/32UC,Waste,Workshop Parts,27/07/2021,30002265,"1,233.01 ",Partic Motor Spares Ltd
East Lindsey District Council,http://statistics.data.gov.uk/id/local-authority/32UC,Waste,Workshop Parts,15/07/2021,30002272,850.00 ,Partic Motor Spares Ltd
East Lindsey District Council,http://statistics.data.gov.uk/id/local-authority/32UC,Waste,Workshop Parts,29/07/2021,30002482,490.10 ,Partic Motor Spares Ltd
East Lindsey District Council,http://statistics.data.gov.uk/id/local-authority/32UC,Waste,Workshop Parts,29/07/2021,30002528,399.00 ,Partic Motor Spares Ltd
East Lindsey District Council,http://statistics.data.gov.uk/id/local-authority/32UC,Waste,Workshop Parts,13/07/2021,30002560,"1,306.30 ",Partic Motor Spares Ltd
East Lindsey District Council,http://statistics.data.gov.uk/id/local-authority/32UC,Waste,Workshop Parts,13/07/2021,30002624,419.67 ,Bucher Municipal
East Lindsey District Council,http://statistics.data.gov.uk/id/local-authority/32UC,Waste,Workshop Parts,29/07/2021,30002626,872.00 ,Bucher Municipal
East Lindsey District Council,http://statistics.data.gov.uk/id/local-authority/32UC,Waste,Workshop Parts,13/07/2021,30002631,513.04 ,Bucher Municipal
East Lindsey District Council,http://statistics.data.gov.uk/id/local-authority/32UC,Waste,Workshop Parts,13/07/2021,30002633,817.13 ,Bucher Municipal
East Lindsey District Council,http://statistics.data.gov.uk/id/local-authority/32UC,Waste,Workshop Parts,12/08/2021,30002788,"1,924.31 ",Partic Motor Spares Ltd
East Lindsey District Council,http://statistics.data.gov.uk/id/local-authority/32UC,Waste,Workshop Parts,12/08/2021,30002793,335.22 ,Partic Motor Spares Ltd
East Lindsey District Council,http://statistics.data.gov.uk/id/local-authority/32UC,Waste,Workshop Parts,19/08/2021,30002977,"1,345.30 ",Partic Motor Spares Ltd
East Lindsey District Council,http://statistics.data.gov.uk/id/local-authority/32UC,Waste,Workshop Parts,19/08/2021,30002981,223.66 ,Partic Motor Spares Ltd
East Lindsey District Council,http://statistics.data.gov.uk/id/local-authority/32UC,Waste,Workshop Parts,19/08/2021,30002990,289.00 ,Partic Motor Spares Ltd
East Lindsey District Council,http://statistics.data.gov.uk/id/local-authority/32UC,Waste,Workshop Parts,19/08/2021,30002992,613.81 ,Partic Motor Spares Ltd
East Lindsey District Council,http://statistics.data.gov.uk/id/local-authority/32UC,Waste,Workshop Parts,19/08/2021,30003007,289.00 ,Partic Motor Spares Ltd
East Lindsey District Council,http://statistics.data.gov.uk/id/local-authority/32UC,Waste,Workshop Parts,19/08/2021,30003008,224.17 ,Partic Motor Spares Ltd
East Lindsey District Council,http://statistics.data.gov.uk/id/local-authority/32UC,Waste,Workshop Parts,10/08/2021,30003042,468.69 ,Overton (UK) Ltd
